Cogmind - Beta 14 @@@ ROGUE MODE // 2024.08.19 @ 16:29:46 Player: Xplodonator Result: Destroyed by Y-45 Defender with Heavy Assault Rifle Performance ------------- Evolutions (1) 500 Regions Visited (2) 400 Robots Destroyed (21) 105 Value Destroyed (486) 486 Prototype IDs (0) 0 Alien Tech Used (0) 0 Bonus (0) 0 TOTAL SCORE: 1491 Bonus ------- None Cogmind --------- Core Integrity 0/400 Matter 300/300 Energy 100/100 System Corruption 2% Temperature Cool (9) Movement Core (350) Ox6 Location -9/Materials Parts ------- > --- POWER (1) -------- (None) > --- PROPULSION (2) --- (None) > --- UTILITY (4) ------ Large Storage Unit Signal Interpreter > --- WEAPON (2) ------- (None) > --- INVENTORY (15) --- Light Ion Engine Light Treads Small Storage Unit Large Storage Unit Large Matter Pod (150) Sensor Array Signal Interpreter Light Armor Plating Peak State ------------ > --- POWER ------------ Ion Engine > --- PROPULSION ------- Light Treads Light Treads > --- UTILITY ---------- Small Storage Unit Improved Terrain Scanner > --- WEAPON ----------- Small Laser Light Assault Rifle > --- INVENTORY -------- Light Ion Engine Aluminum Leg Aluminum Leg [Rating: 9] Favorites ----------- Power Ion Engine Engine Ion Engine Propulsion Light Treads Treads Light Treads Leg Aluminum Leg Utility Small Storage Unit Device Sensor Array Storage Small Storage Unit Processor Signal Interpreter Protection Light Armor Plating Weapon Light Assault Rifle Energy Gun Medium Laser Ballistic Gun Light Assault Rifle Build | -11 -10 -9 ------- Run | Yrd Mat Mat Slots Evolved 2 | . . 2 Power . | . . . Propulsion . | . . . Utility 2 | . . 2 Weapon . | . . . Parts Attached 18 | 6 6 6 Power 2 | 1 . 1 Engine 2 | 1 . 1 Core . | . . . Reactor . | . . . Propulsion 5 | 2 1 2 Treads 3 | 2 1 . Leg 2 | . . 2 Wheel . | . . . Hover . | . . . Flight . | . . . Utility 8 | 2 3 3 Device 3 | 1 1 1 Storage 2 | 1 . 1 Processor 1 | . . 1 Hackware . | . . . Protection 2 | . 2 . Artifact . | . . . Weapon 3 | 1 2 . Energy Gun 2 | . 2 . Energy Cannon . | . . . Ballistic Gun 1 | 1 . . Ballistic Cannon . | . . . Launcher . | . . . Special Weapon . | . . . Impact Weapon . | . . . Slashing Weapon . | . . . Piercing Weapon . | . . . Special Melee Weapon . | . . . Unidentified Prototypes . | . . . Parts Lost 9 | . . 9 Power 2 | . . 2 Propulsion 3 | . . 3 Utility 2 | . . 2 Weapon 2 | . . 2 Highest Loss Streak 6 | . . 6 To Critical Strikes . | . . . Average Slot Usage (%) 93 | . 96 88 Engine 12 | . 14 8 Treads 22 | . 28 9 Leg 3 | . . 10 Device 6 | . 4 10 Storage 13 | . 14 11 Processor 3 | . . 11 Protection 9 | . 9 9 Energy Gun 9 | . 10 8 Ballistic Gun 12 | . 14 9 Peak Build Rating 9 | 8 9 9 Average Rating 7 | 4 7 7 On Entrance 5 | . 8 7 Naked Turns . | . . . Heaviest Build 32 | 12 16 32 Greatest Support 40 | 40 40 40 Greatest Overweight (x) 1 | . . 1 Average Overweight (x) . | . . . Largest Inventory Capacity 15 | 8 8 15 Average Capacity 8 | 7 8 10 Most Carried 8 | 5 8 8 Average Carried 6 | 2 6 6 Final Capacity 15 | 8 8 15 Final Carried 8 | 3 8 8 Class Distribution -------------------- 100% | Mutant Dominant Class ---------------- Mutant | -10/Materials Mutant | -9/Materials Resources | -11 -10 -9 ----------- Run | Yrd Mat Mat Matter Collected 745 | 275 281 189 Remotely . | . . . Salvage Created 841 | 92 336 413 Parts 45 | 5 21 19 Haulers Intercepted . | . . . Recyclers Shooed 2 | 1 . 1 Parts Field Recycled . | . . . Retrieved Matter . | . . . Parts Self-Destructed . | . . . Prevented . | . . . Kills | -11 -10 -9 ------- Run | Yrd Mat Mat Combat Hostiles Destroyed 13 | . 8 5 Guns 13 | . 8 5 Classes Destroyed 7 | 2 4 1 Builder 1 | . 1 . Tunneler 1 | 1 . . Recycler 4 | 1 1 2 Watcher 2 | . 1 1 Swarmer 3 | . 3 . Grunt 8 | . 5 3 Sentry 2 | . . 2 Best Kill Streak 4 | 1 4 2 Combat Bots Only 4 | . 4 2 Max Kills in Single Turn 1 | 1 1 1 Gunslinging . | . . . Exploded . | . . . Melee . | . . . Uniques/NPCs Destroyed . | . . . Combat | -11 -10 -9 -------- Run | Yrd Mat Mat Hostile Shots Fired 153 | . 65 88 Missed 37 | . 16 21 Damage Taken 1507 | . 502 1005 Core 493 | . 85 408 Absorbed by Shields . | . . . Core Remaining (%) 83 | 100 66 . Volleys Fired 125 | 15 75 35 Largest 2 | 1 2 2 Hottest 70 | 20 70 70 Shots Fired 197 | 15 124 58 Gun 197 | 15 124 58 Cannon . | . . . Launcher . | . . . Special . | . . . Kinetic 126 | 15 76 35 Thermal 71 | . 48 23 Explosive . | . . . Electromagnetic . | . . . Robot Hit Streak 10 | 4 8 10 Robot Miss Streak 4 | 2 4 2 Penetration Max . | . . . Secondary Targets . | . . . Shots Hit Robots 127 | 9 73 45 Core Hits 46 | 4 22 20 Critical Kills . | . . . Critical Parts Destroyed . | . . . Critical Strikes 7 | . 5 2 Burn 7 | . 5 2 Melee Attacks . | . . . Impact . | . . . Slashing . | . . . Piercing . | . . . Sneak Attacks . | . . . Combat Hostiles . | . . . Follow-up Attacks . | . . . Damage Inflicted 1236 | 87 685 464 Guns 1208 | 87 685 436 Cannons . | . . . Explosions . | . . . Melee . | . . . Ramming 28 | . . 28 Kinetic 614 | 87 328 199 Thermal 594 | . 357 237 Explosive . | . . . Electromagnetic . | . . . Impact . | . . . Slashing . | . . . Piercing . | . . . Highest Corruption 4 | . 4 2 Average Corruption 3 | . 3 2 Corruption Purged . | . . . Corruption Blocked . | . . . Effects 17 | . 14 3 Message Errors 5 | . 5 . Matter Fused 4 | . 3 1 Heat Flow Errors 1 | . 1 . Energy Discharges 2 | . 1 1 Parts Fused 1 | . 1 . Data Loss (minor) 3 | . 2 1 Misfires 1 | . 1 . Overload Shots . | . . . Overflow Damage . | . . . Projectiles . | . . . Explosions . | . . . Melee . | . . . Knockbacks . | . . . Impact . | . . . Kinetic . | . . . Secondary . | . . . Self-Inflicted Damage . | . . . Shots . | . . . Rammed 8 | . . 8 Targets Rammed 28 | . . 28 Kicked 20 | . . 20 Crushed . | . . . Highest Temperature 431 | . 431 144 Average Temperature 113 | . 135 52 Received Heat Transfer 603 | . 210 393 Effects 2 | . 2 . Matter Decay 1 | . 1 . Damage (minor) 1 | . 1 . Siege Activations . | . . . Robots Corrupted . | . . . Combat Hostiles . | . . . Parts Fried . | . . . Impact Corruptions . | . . . Robots Melted . | . . . Combat Hostiles . | . . . Parts Melted 7 | . 3 4 Heat Transferred 2294 | . 1443 851 Parts Sabotaged . | . . . Parts Stolen . | . . . Parts Stripped . | . . . Power Chain Reactions . | . . . Alert | -11 -10 -9 ------- Run | Yrd Mat Mat Peak Influence 166 | 10 157 166 Initial 29 | . 6 29 Average 68 | 3 69 87 Maximum Alert Level . | . . . Low Security (%) 100 | 100 100 100 Level 1 . | . . . Level 2 . | . . . Level 3 . | . . . Level 4 . | . . . Level 5 . | . . . High Security . | . . . Max Security . | . . . Squads Dispatched 3 | . 3 . Investigation 1 | . 1 . Extermination . | . . . Reinforcement 2 | . 2 . Assault . | . . . Garrison . | . . . Intercept . | . . . Searches Triggered . | . . . Construction Impeded . | . . . Haulers Reinforced . | . . . Active Scanning Responses . | . . . Cargo Convoy Interrupts . | . . . Stealth | -11 -10 -9 --------- Run | Yrd Mat Mat Distress Signals 1 | . . 1 Communications Jammed . | . . . Distress Signals . | . . . Times Spotted 22 | . 14 8 Peak Tracking Total 5 | . 5 3 Tactical Retreats 2 | . 2 . Traps | -11 -10 -9 ------- Run | Yrd Mat Mat Traps Triggered 4 | . 3 1 Indirectly . | . . . Trap Hack Attempts . | . . . Triggered . | . . . Disarmed . | . . . Reprogrammed . | . . . Reused . | . . . Traps Extracted . | . . . Installed . | . . . Triggered . | . . . Machines | -11 -10 -9 ---------- Run | Yrd Mat Mat Machines Disabled . | . . . Max in Single Turn . | . . . Machines Repaired . | . . . Machines Dismantled . | . . . Machines Sabotaged . | . . . Overloaded Fab Kills . | . . . Hacking | -11 -10 -9 --------- Run | Yrd Mat Mat Machines Accessed 4 | . 3 1 Terminals 1 | . 1 . Fabricators . | . . . Repair Stations . | . . . Recycling Units 3 | . 2 1 Scanalyzers . | . . . Garrison Access . | . . . Total Hacks 8 | . 7 1 Successful 8 | . 7 1 Failed . | . . . Catastrophic . | . . . Database Lockouts . | . . . Manual . | . . . Terminals 4 | . 4 . Fabricators . | . . . Repair Stations . | . . . Recycling Units 4 | . 3 1 Scanalyzers . | . . . Garrison Access . | . . . Terminal Hacks 4 | . 4 . Record 4 | . 4 . Fabricator Hacks . | . . . Repair Station Hacks . | . . . Recycling Unit Hacks 4 | . 3 1 Report Inventory 3 | . 2 1 Retrieve Components 1 | . 1 . Scanalyzer . | . . . Garrison Access Hacks . | . . . Unauthorized Hacks . | . . . Terminals . | . . . Fabricators . | . . . Repair Stations . | . . . Recycling Units . | . . . Scanalyzers . | . . . Garrison Access . | . . . Data Cores Recovered . | . . . Used . | . . . Hacking Detections 2 | . 1 1 Full Trace Events 1 | . 1 . Feedback Events . | . . . Feedback Blocked . | . . . Robot Schematics Acquired . | . . . Robots Built . | . . . Authchips . | . . . Time . | . . . Total Robot Build Rating . | . . . Part Schematics Acquired . | . . . Parts Built . | . . . Authchips . | . . . Time . | . . . Total Part Build Rating . | . . . Parts Repaired . | . . . Time . | . . . Parts Recycled . | . . . Recycled Matter . | . . . Retrieved Matter . | . . . Retrieved Components 5 | . 5 . Parts Scanalyzed . | . . . Part Schematics Acquired . | . . . Parts Damaged . | . . . Bothacking | -11 -10 -9 ------------ Run | Yrd Mat Mat Used RIF Installer . | . . . Robots Hacked . | . . . Non-combat . | . . . Combat . | . . . Robot Hacks Applied . | . . . Relay Couplers Released . | . . . Fabnet Peak Effective % . | . . . Robots Rewired . | . . . Allies Hacked . | . . . Hacks Repelled . | . . . Allies | -11 -10 -9 -------- Run | Yrd Mat Mat Total Allies . | . . . Largest Group . | . . . Highest-Rated Group . | . . . Highest-Rated Ally . | . . . Total Orders . | . . . Ally Attacks . | . . . Total Damage . | . . . Kills . | . . . Allies Corrupted . | . . . Allies Melted . | . . . Intel | -11 -10 -9 ------- Run | Yrd Mat Mat Robot Analysis Total . | . . . Derelict Logs Recovered . | . . . Drone Launches . | . . . Drone Recoveries . | . . . Exploration | -11 -10 -9 ------------- Run | Yrd Mat Mat Turns Passed 1467 | 143 910 414 Spaces Moved 614 | 71 404 139 Core 10 | 10 . . Treads 544 | 61 404 79 Legs 60 | . . 60 Wheels . | . . . Hover . | . . . Flight . | . . . Fastest Speed 50 | 50 160 120 Average Speed 155 | 144 160 147 Slowest Speed 190 | 160 160 190 Overloaded Moves . | . . . Propulsion Burnouts . | . . . Robots Hopped . | . . . Cave-ins Triggered . | . . . Exploration Rate (%) 25 | 4 56 16 Regions Visited 2 Branch Regions . Pre-discovered Areas . | . . . Known Exits Taken . | . . . Unknown Exits Taken 2 | 1 1 . Scrap Searched . | . . . Spaces Dug . | . . . Terrain Destroyed . | . . . Melee . | . . . Projectile . | . . . AOE . | . . . Terrain Rammed . | . . . Walls Destroyed . | . . . Machines Disabled . | . . . Actions | -11 -10 -9 --------- Run | Yrd Mat Mat Total 922 | 100 564 258 Wait 99 | . 60 39 Move 612 | 70 403 139 Hop . | . . . Pick Up 29 | 9 12 8 Fast Attach 1 | . . 1 Attach 16 | 6 5 5 Detach 1 | . 1 . Swap 1 | . 1 . Drop 10 | . 7 3 Fire 125 | 15 75 35 Melee . | . . . Ram 8 | . . 8 Kick 20 | . . 20 Crush . | . . . Escape Stasis . | . . . Rewire . | . . . Trap . | . . . Miscellaneous . | . . . Route ------- -11/Scrapyard -10/Materials (discovered 4 exits: *Mat x3 / [*Min]) -9/Materials (discovered 1 exit: [*Sto]) History --------- Turn | Location | Event 4 | -11/Scrapyard | Discovered new exit (range 15) 144 | -11/Scrapyard | Entered Materials 262 | -10/Materials | Discovered new exit (range 10) 262 | -10/Materials | Discovered new exit (range 15) 316 | -10/Materials | Build established: Mutant 486 | -10/Materials | Discovered new exit (range 8) 954 | -10/Materials | Discovered new exit (range 14) 1054 | -10/Materials | Entered another Materials area 1054 | -9/Materials | Evolved 2 slots: Utility x2 1424 | -9/Materials | Discovered new exit (range 16) 1433 | -9/Materials | Core integrity fell below 50% 1457 | -9/Materials | Core integrity fell below 20% 1468 | -9/Materials | Destroyed by Y-45 Defender with Heavy Assault Rifle Last Messages --------------- 01432_ K-01 Serf collects debris. 01433_ Kicked Y-45 Defender out of the way. 01435_ K-01 Serf collects debris. 01435_ Kicked Y-45 Defender. 01439_ K-01 Serf collects debris. 01440_ Kicked Y-45 Defender. 01441_ Aluminum Leg destroyed. 01442_ K-01 Serf collects debris. 01443_ Slammed into Y-45 Defender. 01447_ Critical hit (Burn: +37). 01450_ Slammed into Y-45 Defender. 01453_ K-01 Serf collects debris. 01454_ Slammed into Y-45 Defender. 01454_ Sensor Array broken. 01454_ Destabilizing: Short circuit. 01457_ K-01 Serf collects debris. 01457_ Slammed into Y-45 Defender. 01457_ Destabilizing: Core damaged (-12). 01459_ Broken Sensor Array destroyed. 01461_ Slammed into Y-45 Defender. Map ----- +----------------------------------------------------+ | ???????????????????? ??????????????????????? | | ???????????????????? ??????????????????????? | | ???????????????????? ??????????????????????? | | ???????????????????# #?????????????????????? | | ???????????????????# #?????????????????????? | | ???????????????????# #?????????????????????? | | ???????????????????# #?????????????????????? | | ???????????????????# #####################?? | | ???????????????????# # """ # #?? | | ???????????????????# # """ # #?? | | ???????????????????# # """ # #?? | | ???????????????????# + # #?? | | ??????????########## # # #?? | | ??????????# == # # ]] # #?? | | ??????????# == !%+ # %!]] # #?? | | ??????????# = # # [=[ # #?? | | ??????????# # #####+#######+######### | | ??????????#* # %[* %%= | | ?????????## # !! | | ?????????# "Y" + ######## ############# | | ?????????## """ # #??????#+#???????##### | | ??????????# # #?? ? "??????# | | ??????????###+###### #? """ ""S ????# | | ???????????#^ ^ # """ "" #???# | | ???????????# ^^^ + = """ #???# | | ????????#### """"@Y # ] #???# | | ???????##! "k"""% ##?#########+#???# | | ???????#! ""%""% #####[ #??????# | | ???????# !%% %%%% #??????# | | ???????# %% %%%% < #??????##### | | ???????#! %%%% ##### #??????????? | | ???????##! ##### ##?????? ##??????????? | | ????????#### #???# #????????????????????? | | ???????????####???# + ???????????????????? | | ??????????????????# # ?????????????????? | | ?????????????????? #?"""????????????????? | | ??????????????????#####????????????????????? | | ???????????????????????????????????????????? | | ???????????????????????????????????????????? | | ???????????????????????????????????????????? | | ???????????????????????????????????????????? | | ???????????????????????????????????????????? | | | | | | | | | | | | | | | | | +----------------------------------------------------+ Best States ------------- Heat Dissipation 28 Energy Generation 10 Energy Capacity 250 Matter Stores 300 Matter Capacity 300 Sight Range 16 Robot Scan Range 14 Terrain Scan Range 16 Terrain Scan Density 10 Armor Coverage 150 Evasion (%) 55 Recoil Reduction 2 Item Schematics ----------------- None Robot Schematics ------------------ None Fabricated ------------ Nothing Alien Tech Used ----------------- None Achievements -------------- None Challenges ------------ None Game ------ Seed PotentialRainbowShielding Manual? 0 Play Time 00:21:50 Cumulative 19.7 hours Start 2024.08.19 @ 16:06:57 End 2024.08.19 @ 16:29:46 Sessions 1 Manual Loads 0 Difficulty Rogue Special Mode None Game No. 25 Rogue 25 Adventurer 0 Explorer 0 Win Type - Total 0 Types 0/0/0/0/0/0/0/0/0 Lore% 10 Gallery% 17 Achievement% 16 Wizard Run 0 Options --------- Layout 1 ASCII 0 Keyboard 0 Movement Mouse Keybinds 0 Fullscreen 2 Font 24/Smallcaps Map View 50x35 Zoom Use 0% Tactical HUD 1 Map Filters NONE Filters NONE Steam 1 RUN: 354046d2-ce19-4041-8f79-d34ad1d18c79